bitfinex-derivatives/quotes_BTCF0:USTF0_20251125
["timestamp","ask_amount","ask_price","bid_price","bid_amount"]
[1764067282568,0.43034,87313.0,87312.0,0.09884]
[1764067283972,0.43034,87313.0,87312.0,0.12824]
[1764067286574,0.12034,87313.0,87312.0,0.12824]
[1764067287074,0.09034,87313.0,87312.0,0.12824]
[1764067288872,0.1017947,87330.0,87329.0,0.09884]
[1764067289178,0.4317947,87330.0,87329.0,0.09884]
[1764067289375,0.16034,87330.0,87329.0,0.09884]
[1764067289675,0.5017947,87330.0,87329.0,0.09884]
[1764067291969,0.1017954,87325.0,87324.0,0.12824]
[1764067292175,0.1717954,87325.0,87324.0,0.12824]
[1764067292372,0.16034,87325.0,87324.0,0.12824]
[1764067292574,0.09034,87325.0,87324.0,0.12824]
[1764067293276,0.54034,87325.0,87324.0,0.12824]
[1764067293468,0.54034,87325.0,87324.0,0.09884]
[1764067293669,0.30034,87325.0,87324.0,0.09884]
[1764067295877,0.30034,87325.0,87324.0,0.1396955]
[1764067298180,0.30034,87325.0,87324.0,0.12824]
[1764067298479,0.40034,87325.0,87324.0,0.12824]
[1764067301970,0.40034,87325.0,87324.0,0.09884]
[1764067302170,0.40034,87325.0,87321.0,0.00017172]
[1764067302171,0.06112,87322.0,87321.0,0.00017172]
[1764067302373,0.46112,87322.0,87321.0,0.00017172]
[1764067302779,0.46112,87322.0,87321.0,0.04787172]
[1764067303378,0.46112,87322.0,87321.0,0.09533172]
[1764067310890,0.27972912,87322.0,87321.0,0.09533172]
[1764067318292,0.0114552,87327.0,87326.0,0.09636]
[1764067318493,0.4514552,87327.0,87326.0,0.09636]
[1764067319087,0.56596797,87327.0,87326.0,0.09636]
[1764067319393,1.06596797,87327.0,87326.0,0.09636]
[1764067321304,1.06596797,87327.0,87324.0,0.02759]
[1764067321692,1.06596797,87327.0,87324.0,0.12395]
[1764067323097,1.06596797,87327.0,87324.0,0.07513]
[1764067323500,1.06596797,87327.0,87324.0,0.12395]
[1764067329007,0.63,87327.0,87326.0,0.09636]
[1764067330896,0.8314551,87327.0,87326.0,0.09636]
[1764067339414,0.94596787,87327.0,87324.0,0.07584]
[1764067339906,0.94596787,87327.0,87324.0,0.12551]
[1764067344218,0.94596787,87327.0,87326.0,0.09792]
[1764067345723,0.93451277,87327.0,87326.0,0.09792]
[1764067349121,0.82,87327.0,87326.0,0.09792]
[1764067353622,0.55,87327.0,87326.0,0.09792]
[1764067354325,0.78,87327.0,87326.0,0.09792]
[1764067364542,0.0114558,87322.0,87321.0,0.00017172]
[1764067364743,0.4614558,87322.0,87321.0,0.04496172]
[1764067364940,0.4614558,87322.0,87321.0,0.08895172]
[1764067365143,0.57597513,87322.0,87321.0,0.08895172]
[1764067365344,0.16,87322.0,87321.0,0.08895172]
[1764067366645,0.18077172,87334.0,87333.0,0.08878]
[1764067366844,0.59077172,87334.0,87333.0,0.08878]
[1764067367238,0.70527531,87334.0,87333.0,0.08878]
[1764067367937,1.20527531,87334.0,87333.0,0.08878]
[1764067371646,0.58017172,87334.0,87333.0,0.08878]
[1764067372545,0.08017172,87334.0,87333.0,0.08878]
[1764067380056,0.00017172,87334.0,87333.0,0.08878]
[1764067382252,0.40017172,87334.0,87333.0,0.08878]
[1764067385655,0.00017172,87334.0,87333.0,0.08878]
[1764067385855,0.05017172,87334.0,87333.0,0.08878]
[1764067386359,0.26017172,87334.0,87333.0,0.08878]
[1764067393166,0.0114543,87333.0,87332.0,0.02362]
[1764067393460,0.4414543,87333.0,87332.0,0.06317]
[1764067393860,0.55595789,87333.0,87332.0,0.10102]
[1764067394661,0.55595789,87333.0,87332.0,0.06317]
[1764067394867,0.55595789,87333.0,87332.0,0.02362]
[1764067395259,1.05595789,87333.0,87332.0,0.02362]
[1764067397364,1.05595789,87333.0,87332.0,0.0193]
[1764067397867,1.05595789,87333.0,87332.0,0.01087]
[1764067399067,1.05595789,87333.0,87332.0,0.05042]
[1764067399258,1.05595789,87333.0,87332.0,0.08827]
[1764067400267,1.05595789,87333.0,87332.0,0.08724]
[1764067402472,1.05595789,87333.0,87332.0,0.08577]
[1764067402668,1.04450359,87333.0,87332.0,0.08577]
[1764067402871,0.61,87333.0,87332.0,0.08577]
[1764067403771,0.5,87333.0,87332.0,0.08577]
[1764067404172,0.00017172,87334.0,87333.0,0.0888543]
[1764067404367,0.0114505,87362.0,87361.0,0.0774]
[1764067404669,0.4214505,87362.0,87361.0,0.0774]
[1764067405073,0.5359554,87362.0,87361.0,0.0774]
[1764067405773,1.05116069,87362.0,87361.0,0.0774]
[1764067406071,1.05116069,87362.0,87361.0,0.03955]
[1764067406271,1.05116069,87362.0,87361.0,0.0774]
[1764067407468,0.92520529,87362.0,87361.0,0.0774]
[1764067407771,0.66520529,87362.0,87361.0,0.0774]
[1764067408860,0.51520529,87362.0,87361.0,0.0774]
[1764067409059,0.72596087,87362.0,87361.0,0.0774]
[1764067409265,0.41520529,87362.0,87361.0,0.0774]
[1764067412873,0.01520529,87362.0,87361.0,0.0774]
[1764067413178,0.37,87362.0,87361.0,0.0774]
[1764067413474,0.0114497,87369.0,87368.0,0.0774]
[1764067413682,0.45,87369.0,87368.0,0.0774]
[1764067414078,0.95,87369.0,87368.0,0.0774]
[1764067415683,0.9614496,87369.0,87368.0,0.0774]
[1764067417084,0.95,87369.0,87368.0,0.0774]
[1764067418984,0.9614496,87369.0,87368.0,0.0774]
[1764067425280,0.95,87369.0,87368.0,0.0774]
[1764067433594,0.0114497,87368.0,87365.0,0.06011]
[1764067433796,0.4114497,87368.0,87365.0,0.09638]
[1764067434990,0.4,87368.0,87366.0,0.0858]
[1764067435392,0.4,87368.0,87367.0,0.07435]
[1764067436896,0.9,87368.0,87367.0,0.07435]
[1764067441417,0.9,87368.0,87365.0,0.02203]
[1764067441418,0.0114499,87367.0,87365.0,0.02203]
[1764067441618,0.4414499,87367.0,87365.0,0.02203]
[1764067442012,0.0114506,87362.0,87360.0,0.05834]
[1764067442210,0.3914506,87362.0,87360.0,0.02203]
[1764067442416,0.3914506,87362.0,87360.0,0.05834]
[1764067442918,0.3914506,87362.0,87360.0,0.09846]
[1764067444011,0.3914506,87362.0,87360.0,0.02203]
[1764067444616,0.3914506,87362.0,87360.0,0.05834]
[1764067444816,0.5,87361.0,87360.0,0.05834]
[1764067445018,0.94,87361.0,87360.0,0.05834]
[1764067448021,0.94,87361.0,87360.0,0.09846]
[1764067451514,0.94,87361.0,87360.0,0.05834]
[1764067451711,0.0114516,87354.0,87335.0,0.01015117]
[1764067451924,0.03646,87342.0,87341.0,0.07468]
[1764067452114,0.42646,87342.0,87341.0,0.07468]
[1764067453911,0.01823,87342.0,87341.0,0.07468]
[1764067454118,0.00017172,87350.0,87340.0,0.0334433]
[1764067454119,0.01840172,87350.0,87349.0,0.07468]
[1764067454315,0.44840172,87350.0,87349.0,0.07468]
[1764067454516,0.46663172,87350.0,87349.0,0.07468]
[1764067460727,0.03646,87346.0,87345.0,0.09667]
[1764067460928,0.4879126,87346.0,87345.0,0.09667]
[1764067462724,0.4879126,87346.0,87345.0,0.07468]
[1764067462929,0.03646,87341.0,87340.0,0.09667]
[1764067463128,0.44646,87341.0,87340.0,0.09667]
[1764067465123,0.03646,87334.0,87330.0,0.02199]
[1764067465322,0.40646,87334.0,87330.0,0.02199]
[1764067466329,0.40646,87334.0,87333.0,0.07485172]
[1764067466530,0.03646,87334.0,87333.0,0.08630602]
[1764067466726,0.10646,87334.0,87333.0,0.08630602]
[1764067466927,0.36646,87334.0,87333.0,0.08630602]
[1764067467527,0.48096359,87334.0,87333.0,0.00017172]
[1764067467727,0.0479159,87321.0,87320.0,0.09667]
[1764067468035,0.4579159,87321.0,87320.0,0.09667]
[1764067468628,0.44646,87321.0,87320.0,0.09667]
[1764067469228,0.03646,87321.0,87320.0,0.09667]
[1764067469434,0.47646,87321.0,87320.0,0.09667]
[1764067469828,0.4879159,87321.0,87320.0,0.09667]
[1764067472033,0.47646,87321.0,87320.0,0.09667]
[1764067483444,0.47646,87321.0,87320.0,0.108126]
[1764067483737,0.47646,87321.0,87312.0,0.02216172]
[1764067483738,0.03366,87313.0,87312.0,0.00017172]
[1764067483939,0.425117,87313.0,87312.0,0.03670172]
[1764067484445,0.53963764,87313.0,87312.0,0.07377172]
[1764067485945,0.55427152,87313.0,87312.0,0.07477172]
[1764067486546,0.55427152,87313.0,87312.0,0.07377172]
[1764067487745,0.55427152,87313.0,87312.0,0.00017172]
[1764067487950,0.55427152,87313.0,87312.0,0.07377172]
[1764067488139,0.54281452,87313.0,87312.0,0.09461172]
[1764067488543,0.04829388,87313.0,87312.0,0.09461172]
[1764067492841,0.20047172,87329.0,87318.0,0.0736]
[1764067492842,0.0451162,87319.0,87318.0,0.0736]
[1764067493043,0.35366,87319.0,87318.0,0.0736]
[1764067493653,0.07366,87319.0,87318.0,0.0736]
[1764067493847,0.03113429,87319.0,87318.0,0.0736]
[1764067495649,0.01683,87319.0,87318.0,0.0736]
[1764067497542,0.03366,87319.0,87318.0,0.0736]
[1764067500439,0.22307172,87329.0,87328.0,0.09016]
[1764067500641,0.00017172,87329.0,87328.0,0.09016]
[1764067500948,0.50017172,87329.0,87328.0,0.09016]
[1764067502451,0.00017172,87329.0,87328.0,0.09016]
[1764067502756,0.02298,87346.0,87345.0,0.1016128]
[1764067502955,4e-05,87346.0,87345.0,0.1016128]
[1764067503353,0.01151,87346.0,87345.0,0.1016128]
[1764067505048,0.46298,87346.0,87345.0,0.09016]
[1764067506257,4e-05,87346.0,87345.0,0.09016]
[1764067508169,0.02298,87346.0,87345.0,0.09016]
[1764067508450,0.40298,87346.0,87345.0,0.09016]
[1764067509456,0.05298,87346.0,87345.0,0.09016]
[1764067510158,0.24298,87346.0,87345.0,0.09016]
[1764067513446,0.24298,87346.0,87345.0,0.03499]
[1764067513652,0.0238933,87341.0,87340.0,0.09035]
[1764067513856,0.0238937,87338.0,87337.0,0.03533172]
[1764067514055,0.4538937,87338.0,87337.0,0.03533172]
[1764067514457,0.56838156,87338.0,87337.0,0.00017172]
[1764067515259,0.0238953,87326.0,87325.0,0.08965]
[1764067515459,0.4338953,87326.0,87325.0,0.08965]
[1764067515661,0.42244,87326.0,87325.0,0.08965]
[1764067519462,0.2583614,87326.0,87325.0,0.08965]
[1764067522867,0.37287548,87326.0,87320.0,0.08965]
[1764067523364,0.0114559,87321.0,87320.0,0.08965]
[1764067523568,0.4114559,87321.0,87320.0,0.08965]
[1764067533578,0.4114559,87321.0,87320.0,0.0539]
[1764067534090,0.4114559,87321.0,87320.0,0.08965]
[1764067534679,0.52597654,87321.0,87320.0,0.08965]
[1764067534879,0.52597654,87321.0,87320.0,0.0539]
[1764067535275,0.52597654,87321.0,87320.0,0.08965]
[1764067540987,0.52609654,87321.0,87320.0,0.08965]
[1764067541297,0.51464064,87321.0,87320.0,0.08965]
[1764067548494,0.03006,87321.0,87320.0,0.08965]
[1764067548792,0.09714041,87330.0,87329.0,0.06509]
[1764067548989,0.22006,87330.0,87329.0,0.06509]
[1764067549196,0.22012,87330.0,87329.0,0.06509]
[1764067551794,0.00012,87330.0,87329.0,0.06509]
[1764067555092,0.3915747,87330.0,87329.0,0.06509]
[1764067558196,0.0114554,87325.0,87324.0,0.0878]
[1764067558402,0.0114554,87325.0,87320.0,0.08481]
[1764067558403,0.0114559,87321.0,87320.0,0.08481]
[1764067558700,0.4514559,87321.0,87320.0,0.08481]
[1764067560198,0.44,87321.0,87320.0,0.08481]
[1764067560398,0.0114549,87329.0,87321.0,0.0775259]
[1764067560701,0.0114555,87324.0,87321.0,0.06607]
[1764067560892,0.4214555,87324.0,87321.0,0.06607]
[1764067561500,0.4214555,87324.0,87323.0,0.06607]
[1764067562000,0.41,87324.0,87323.0,0.06607]
[1764067565497,0.41,87324.0,87317.0,0.03404172]
[1764067565498,0.52451671,87324.0,87317.0,0.03404172]
[1764067565698,0.0114563,87318.0,87317.0,0.00017172]
[1764067565903,0.4614563,87318.0,87317.0,0.00017172]
[1764067566406,0.57597301,87318.0,87317.0,0.00017172]
[1764067572206,0.57597301,87318.0,87317.0,0.03199172]
[1764067572896,0.57597301,87318.0,87317.0,0.00017172]
[1764067575793,0.57597301,87318.0,87317.0,0.03199172]
[1764067576600,0.57597301,87318.0,87317.0,0.06533172]
[1764067576803,0.4,87317.0,87300.0,9e-08]
[1764067577004,0.4,87317.0,87260.0,0.0194]
[1764067577005,0.0114596,87293.0,87260.0,0.0194]
[1764067577304,0.0114628,87269.0,87268.0,0.06516]
[1764067577506,0.42,87269.0,87268.0,0.06516]
[1764067577808,0.43331371,87269.0,87260.0,0.01957182]
[1764067578001,0.0114634,87265.0,87264.0,0.06516]
[1764067578203,0.4614634,87265.0,87264.0,0.06516]
[1764067578601,0.57605228,87265.0,87264.0,0.06516]
[1764067579710,0.39806014,87265.0,87264.0,0.06516]
[1764067580501,0.40952354,87265.0,87264.0,0.06516]
[1764067583110,0.0114638,87261.0,87260.0,0.08473182]
[1764067583311,0.4214638,87261.0,87260.0,0.08473182]
[1764067583711,0.53605793,87261.0,87260.0,0.08473182]
[1764067584414,0.53605793,87261.0,87260.0,0.05139182]
[1764067584806,0.53605793,87261.0,87260.0,0.08473182]
[1764067585008,1.03605793,87261.0,87260.0,0.08473182]
[1764067586912,1.02459413,87261.0,87260.0,0.08473182]
[1764067590608,0.61459413,87261.0,87260.0,0.08473182]
[1764067590813,0.61459413,87261.0,87260.0,0.48473182]
[1764067590814,0.35207,87261.0,87260.0,0.48473182]
[1764067591111,0.25345,87261.0,87260.0,0.48473182]
[1764067591813,0.17517311,87270.0,87269.0,0.06473]
[1764067592013,0.0780927,87270.0,87269.0,0.06473]
[1764067592612,0.5475027,87270.0,87269.0,0.06473]
[1764067593215,0.0975027,87270.0,87269.0,0.06473]
[1764067595623,0.08604,87270.0,87269.0,0.06473]
[1764067596225,0.00017182,87277.0,87276.0,0.0761918]
[1764067596920,0.00017182,87277.0,87276.0,0.0858918]
[1764067597322,0.03335182,87277.0,87276.0,0.0761918]
[1764067597627,0.03335182,87277.0,87276.0,0.06473]
[1764067597822,0.00017182,87277.0,87276.0,0.06473]
[1764067600321,0.06680182,87277.0,87276.0,0.06473]
[1764067604235,0.03335182,87277.0,87276.0,0.06473]
[1764067605226,0.00017182,87277.0,87276.0,0.06473]
[1764067605729,0.03256182,87277.0,87276.0,0.06473]
[1764067607526,0.00017182,87277.0,87276.0,0.06473]
[1764067608432,0.07426352,87277.0,87276.0,0.06473]
[1764067608622,0.06280182,87277.0,87276.0,0.06473]
[1764067610528,0.00017182,87277.0,87276.0,0.06473]
[1764067611335,0.09715629,87286.0,87285.0,0.06255]
[1764067611633,0.06263,87295.0,87294.0,0.0740095]
[1764067611832,0.15978629,87300.0,87299.0,0.0740088]
[1764067612028,0.06263,87300.0,87299.0,0.0740088]
[1764067612331,0.06263,87300.0,87299.0,0.06255]
[1764067617328,0.09621,87305.0,87304.0,0.0995381]
[1764067619636,0.12462,87305.0,87304.0,0.0995381]
[1764067619936,0.12462,87305.0,87304.0,0.08808]
[1764067620132,0.0114588,87299.0,87297.0,0.099539]
[1764067620332,0.09621,87298.0,87297.0,0.08808]
[1764067621237,0.09621,87292.0,87291.0,0.09971162]
[1764067621433,0.51621,87292.0,87291.0,0.00017182]
[1764067622635,0.09621,87275.0,87274.0,0.099542]
[1764067623926,0.09621,87275.0,87274.0,0.100542]
[1764067625141,0.09621,87275.0,87274.0,0.101542]
[1764067625938,0.04811,87275.0,87274.0,0.101542]
[1764067626439,0.09621,87275.0,87274.0,0.101542]
[1764067626843,0.09621,87282.0,87281.0,0.0995412]
[1764067627744,0.00017182,87283.0,87282.0,0.08808]
[1764067629142,0.09638182,87283.0,87282.0,0.08808]
[1764067629346,0.09638182,87283.0,87282.0,0.08908]
[1764067629846,0.09638182,87283.0,87282.0,0.09008]
[1764067630247,0.10784272,87283.0,87282.0,0.09008]
[1764067630549,0.50784272,87283.0,87282.0,0.002]
[1764067630843,0.16784272,87283.0,87282.0,0.002]
[1764067631334,0.23784272,87283.0,87282.0,0.002]
[1764067632353,0.48784272,87283.0,87282.0,0.002]
[1764067633339,0.98784272,87283.0,87282.0,0.002]
[1764067642651,0.98784272,87283.0,87266.0,0.09387182]
[1764067642652,0.08925,87267.0,87266.0,0.09387182]
[1764067642853,0.51925,87267.0,87266.0,0.09387182]
[1764067643147,0.51925,87267.0,87266.0,0.04774182]
[1764067643450,0.11661,87265.0,87264.0,0.04757]
[1764067643651,0.49661,87265.0,87264.0,0.04757]
[1764067643851,0.5080733,87265.0,87264.0,0.04757]
[1764067644243,0.5080733,87265.0,87264.0,0.03868]
[1764067644846,0.08925,87257.0,87256.0,0.0770144]
[1764067648256,0.08925,87257.0,87241.0,0.18068]
[1764067648257,0.14688461,87266.0,87265.0,0.0937]
[1764067648456,0.54688461,87266.0,87265.0,0.0937]
[1764067648657,0.48925,87266.0,87265.0,0.0937]
[1764067648960,0.26925,87266.0,87265.0,0.0937]
[1764067649549,0.5207131,87266.0,87265.0,0.0937]
[1764067650554,0.00017182,87274.0,87273.0,0.1051622]
[1764067650858,0.02736,87300.0,87266.0,0.0114631]
[1764067650859,0.04394,87300.0,87299.0,0.0937]
[1764067651050,0.08925,87311.0,87310.0,0.0937]
[1764067651647,0.1007072,87311.0,87310.0,0.0937]
[1764067651856,0.1307072,87311.0,87310.0,0.04757]
[1764067652047,0.11925,87311.0,87310.0,0.1051574]
[1764067652353,0.35925,87311.0,87310.0,0.0937]
[1764067653550,0.08925,87303.0,87302.0,0.09387182]
[1764067653853,0.02736,87318.0,87304.0,0.11992]
[1764067653854,0.11842673,87312.0,87304.0,0.11992]
[1764067654155,0.49842673,87312.0,87304.0,0.11992]
[1764067654752,0.0114578,87307.0,87304.0,0.11992]
[1764067654960,0.3814578,87307.0,87304.0,0.11992]
[1764067655559,0.0114583,87303.0,87302.0,0.00017182]
[1764067655765,0.3814583,87303.0,87302.0,0.00017182]
[1764067656154,0.49600255,87303.0,87302.0,0.00017182]
[1764067657658,0.99600255,87303.0,87302.0,0.00017182]
[1764067658366,0.98454425,87303.0,87302.0,0.09387182]
[1764067660055,0.98454425,87303.0,87302.0,0.00017182]
[1764067661061,1.03762425,87303.0,87302.0,0.00017182]
[1764067661458,1.03762425,87303.0,87302.0,0.04435182]
[1764067661668,1.03762425,87303.0,87302.0,0.08763182]
[1764067662256,0.66762425,87303.0,87302.0,0.08763182]
[1764067662465,0.67762425,87303.0,87302.0,0.08763182]
[1764067662864,0.87762425,87303.0,87302.0,0.08763182]
[1764067663252,0.37762425,87303.0,87302.0,0.08763182]
[1764067665766,0.26308,87303.0,87302.0,0.08763182]
[1764067669871,0.44308,87303.0,87302.0,0.08763182]
[1764067671072,0.44308,87303.0,87302.0,0.00017182]
[1764067673279,0.94308,87303.0,87302.0,0.00017182]
[1764067674382,0.75012954,87303.0,87302.0,0.00017182]
[1764067677482,0.75012954,87303.0,87302.0,0.04435182]
[1764067680177,0.75012954,87303.0,87302.0,0.00017182]
[1764067680688,0.86467379,87303.0,87302.0,0.00017182]
[1764067681390,0.86467379,87303.0,87302.0,0.11298182]
[1764067681787,0.62454425,87303.0,87302.0,0.11298182]
[1764067682282,0.12454425,87303.0,87302.0,0.11298182]
[1764067683691,0.01,87303.0,87302.0,0.11298182]
[1764067684594,0.0114581,87305.0,87304.0,0.11281]
[1764067684794,0.0114581,87305.0,87304.0,0.1242681]
[1764067684795,0.3614581,87305.0,87304.0,0.1242681]
[1764067684989,0.0514581,87305.0,87304.0,0.1242681]
[1764067685695,0.3914581,87305.0,87304.0,0.11281]
[1764067685895,0.53,87305.0,87304.0,0.11281]
[1764067686487,0.5,87305.0,87304.0,0.11281]
[1764067687194,0.41046,87305.0,87304.0,0.11281]
[1764067687394,0.13490222,87319.0,87318.0,0.14646]
[1764067687588,0.19228812,87319.0,87318.0,0.14646]
[1764067687787,0.54468112,87319.0,87318.0,0.14646]
[1764067690483,0.11066,87307.0,87306.0,0.14646]
[1764067690683,0.11066,87303.0,87302.0,0.11298182]
[1764067690888,0.56066,87303.0,87302.0,0.11298182]
[1764067692290,0.11066,87303.0,87302.0,0.11298182]
[1764067692894,0.55066,87303.0,87302.0,0.11298182]
[1764067694200,0.55066,87303.0,87302.0,0.00017182]
[1764067695194,0.55066,87303.0,87302.0,0.05652182]
[1764067695390,0.44066,87303.0,87302.0,0.11540182]
[1764067696895,0.44066,87303.0,87302.0,0.00017182]
[1764067698101,0.10826,87289.0,87288.0,0.14888]
[1764067699200,0.10826,87298.0,87297.0,0.11523]
[1764067699402,0.05426,87298.0,87297.0,0.11523]
[1764067699597,0.45256227,87303.0,87302.0,0.11523]
[1764067699802,0.50826,87303.0,87302.0,0.11523]
[1764067701404,0.16826,87303.0,87302.0,0.11523]
[1764067701594,0.19826,87303.0,87302.0,0.11523]
[1764067701796,0.42826,87303.0,87302.0,0.11523]
[1764067702100,0.4397183,87303.0,87302.0,0.11523]
[1764067702496,0.42826,87303.0,87302.0,0.11523]
[1764067702696,0.03281972,87306.0,87305.0,0.11523]
[1764067702995,0.38255182,87306.0,87305.0,0.11523]
[1764067703202,0.49709214,87306.0,87305.0,0.11523]
[1764067703899,0.99709214,87306.0,87305.0,0.11523]
[1764067704298,1.00855004,87306.0,87305.0,0.11523]
[1764067704903,0.88255182,87306.0,87305.0,0.11523]
[1764067705503,0.38255182,87306.0,87305.0,0.11523]
[1764067712907,0.04255182,87306.0,87305.0,0.11523]
[1764067713110,0.04136182,87306.0,87305.0,0.11523]
[1764067713412,0.02017182,87306.0,87305.0,0.11523]
[1764067713612,0.00017182,87306.0,87305.0,0.11523]
[1764067713906,0.24302,87324.0,87323.0,0.1266856]
[1764067714108,0.14463639,87346.0,87329.0,0.05888]
[1764067714109,0.04272,87330.0,87329.0,0.05888]
[1764067714407,0.46272,87330.0,87329.0,0.11523]
[1764067715111,0.04272,87330.0,87329.0,0.11523]
[1764067715314,0.60272,87330.0,87329.0,0.11523]
[1764067716311,0.86272,87330.0,87329.0,0.11523]
[1764067716812,0.36272,87330.0,87329.0,0.1266849]
[1764067720313,0.10272,87330.0,87329.0,0.1266849]
[1764067720814,0.00017182,87338.0,87337.0,0.1266838]
[1764067721518,0.00017182,87338.0,87336.0,0.03295]
[1764067721519,0.011452,87351.0,87345.0,0.1237228]
[1764067721707,0.0970524,87360.0,87345.0,0.1237228]
[1764067722304,0.0114505,87363.0,87345.0,0.1237228]
[1764067722618,0.00017182,87354.0,87345.0,0.1237228]
[1764067723605,0.00017182,87354.0,87353.0,0.1612417]
[1764067724714,0.12740513,87368.0,87367.0,0.1612399]
[1764067724919,0.37447,87368.0,87367.0,0.1612399]
[1764067725114,0.3871854,87368.0,87367.0,0.1612399]
[1764067725315,0.87447,87368.0,87367.0,0.1612399]
[1764067725618,0.73,87368.0,87367.0,0.1612399]
[1764067725921,0.5,87368.0,87367.0,0.1612399]
[1764067726811,0.00017172,87376.0,87375.0,0.1237188]
[1764067729217,0.12679774,87391.0,87390.0,0.1237169]
[1764067729417,0.16447,87391.0,87390.0,0.1237169]
[1764067729617,0.49684824,87391.0,87390.0,0.11227]
[1764067730020,0.99684824,87391.0,87390.0,0.11227]
[1764067730219,0.75684824,87391.0,87390.0,0.11227]
[1764067730420,0.75684824,87391.0,87390.0,0.11727]
[1764067731013,0.75684824,87391.0,87390.0,0.12227]
[1764067731215,0.79896612,87391.0,87390.0,0.12227]
[1764067731820,0.92625168,87391.0,87390.0,0.01]
[1764067734422,0.54625168,87391.0,87390.0,0.12227]
[1764067734621,0.52896612,87391.0,87390.0,0.12227]
[1764067735024,0.83896612,87391.0,87390.0,0.1337169]
[1764067735830,0.2,87391.0,87390.0,0.1337169]
[1764067736818,0.01291219,87391.0,87390.0,0.01]
[1764067737022,0.49442891,87391.0,87390.0,0.01]
[1764067737716,0.50692959,87391.0,87390.0,0.01]
[1764067738325,0.50692959,87391.0,87390.0,0.143]
[1764067739029,0.38,87391.0,87390.0,0.143]
[1764067739227,0.01255875,87392.0,87391.0,0.1444467]
[1764067739431,0.00017172,87399.0,87398.0,0.1444458]
[1764067739628,0.4524881,87399.0,87398.0,0.1444458]
[1764067739829,0.24017172,87399.0,87398.0,0.1444458]
[1764067740029,0.74017172,87399.0,87398.0,0.1444458]
[1764067740633,0.74017172,87399.0,87398.0,0.1494458]
[1764067740836,0.74017172,87399.0,87398.0,0.138]
[1764067741529,0.24017172,87399.0,87398.0,0.138]
[1764067741720,0.24017172,87399.0,87391.0,0.005]
[1764067741923,0.18072,87398.0,87391.0,0.00427282]
[1764067742125,0.69324071,87398.0,87391.0,0.00427282]
[1764067742322,0.4,87397.0,87360.0,0.0511307]
[1764067742529,0.08176599,87391.0,87360.0,0.03968]
[1764067742744,0.5,87390.0,87368.0,0.03968]
[1764067742932,0.92,87390.0,87376.0,0.03968]
[1764067743236,0.11442367,87389.0,87368.0,0.03968]
[1764067743430,0.54442367,87389.0,87368.0,0.03968]
[1764067743736,0.62618966,87389.0,87368.0,0.03968]
[1764067743938,0.62618966,87389.0,87376.0,0.03968]
[1764067744143,0.54442367,87389.0,87382.0,0.00217172]
[1764067744438,0.0114475,87386.0,87384.0,0.03968]
[1764067744644,0.8814475,87386.0,87384.0,0.03968]
[1764067745028,0.11443546,87385.0,87384.0,0.03968]
[1764067745227,0.48443546,87385.0,87384.0,0.03968]
[1764067746239,0.0114476,87384.0,87382.0,0.00017172]
[1764067746440,0.4514476,87384.0,87382.0,0.00017172]
[1764067746840,0.11443677,87383.0,87382.0,0.00017172]
[1764067747041,0.56443677,87383.0,87382.0,0.00017172]
[1764067748233,0.56643677,87383.0,87382.0,0.00017172]
[1764067748940,1.06643677,87383.0,87382.0,0.00017172]
[1764067749140,1.06743677,87383.0,87382.0,0.00017172]
[1764067749545,1.06743677,87383.0,87382.0,0.14461962]
[1764067750037,0.85743677,87383.0,87382.0,0.13317172]
[1764067750544,0.85743677,87383.0,87382.0,0.00017172]
[1764067750732,0.35743677,87383.0,87382.0,0.00017172]
[1764067750941,0.35743677,87383.0,87368.0,0.03968]
[1764067751244,0.1523791,87378.0,87368.0,0.03968]
[1764067751446,0.5223791,87378.0,87368.0,0.03968]
[1764067751848,0.0114496,87369.0,87368.0,0.03968]
[1764067752041,0.4614496,87369.0,87368.0,0.03968]
[1764067752436,0.57590732,87369.0,87368.0,0.03968]
[1764067753046,0.57690732,87369.0,87368.0,0.03968]
[1764067753446,0.57790732,87369.0,87368.0,0.03968]
[1764067754141,0.57890732,87369.0,87368.0,0.03968]
[1764067754641,0.42890732,87369.0,87368.0,0.03968]
[1764067755041,0.11745772,87369.0,87368.0,0.1730597]
[1764067755346,0.002,87369.0,87368.0,0.1730597]
[1764067755541,0.003,87369.0,87368.0,0.1730597]
[1764067758147,0.003,87369.0,87368.0,0.16161]
[1764067758341,0.433,87369.0,87368.0,0.03968]
[1764067758652,0.25759584,87369.0,87368.0,0.03968]
[1764067759347,0.25759584,87369.0,87368.0,0.1008]
[1764067759539,0.25759584,87369.0,87368.0,0.16161]
[1764067768156,0.25949584,87369.0,87368.0,0.1355393]
[1764067770758,0.25949584,87369.0,87360.0,0.03985172]
[1764067770759,0.0133507,87361.0,87360.0,0.10097172]
[1764067770954,0.3933507,87361.0,87360.0,0.00017172]
[1764067771452,0.50780842,87361.0,87360.0,0.00017172]
[1764067771855,1.00780842,87361.0,87360.0,0.00017172]
[1764067772157,1.00880842,87361.0,87360.0,0.00017172]
[1764067773355,1.00980842,87361.0,87360.0,0.00017172]
[1764067774363,0.0133517,87353.0,87352.0,0.10031172]
[1764067774557,0.4333517,87353.0,87352.0,0.10031172]
[1764067775057,0.5478199,87353.0,87352.0,0.09808172]
[1764067775256,0.5478199,87353.0,87352.0,0.03696172]
[1764067775660,0.5344682,87353.0,87352.0,0.15889172]
[1764067775962,0.92734,87353.0,87352.0,0.15889172]
[1764067776256,0.92834,87353.0,87352.0,0.13281494]
[1764067777751,0.92934,87353.0,87352.0,0.13281494]
[1764067779964,1.04381869,87353.0,87352.0,0.07200494]
[1764067780263,1.04381869,87353.0,87352.0,0.13281494]
[1764067780660,1.04381869,87353.0,87352.0,0.01088494]
[1764067780857,0.0595,87349.0,87348.0,0.15997]
[1764067781061,0.4809522,87349.0,87348.0,0.15997]
[1764067781968,0.4819522,87349.0,87348.0,0.15997]
[1764067782464,0.4829522,87349.0,87348.0,0.15997]
[1764067789775,0.1415,87349.0,87348.0,0.1714224]
[1764067792176,0.1529522,87349.0,87348.0,0.15997]
[1764067792475,0.1415,87349.0,87348.0,0.15997]
[1764067794382,0.002,87349.0,87348.0,0.15997]
[1764067795785,0.001,87349.0,87348.0,0.15997]
[1764067796188,0.00017172,87357.0,87356.0,0.12313]